bitfinex/quotes_ETHUSD_20260203
["timestamp","ask_amount","ask_price","bid_price","bid_amount"]
[1770146658050,0.0011,2188.3,2187.0,12.91392237]
[1770146658678,0.0011,2188.3,2187.2,12.91392237]
[1770146658879,0.0011,2188.3,2187.5,12.88138509]
[1770146659088,0.0003,2188.5,2187.0,1.17539442]
[1770146659285,0.0003,2188.5,2186.9,0.959]
[1770146659487,0.03206376,2188.3,2186.9,0.959]
[1770146659651,0.0003,2188.5,2186.9,12.69752795]
[1770146659860,0.0003,2188.5,2187.0,1.2697528]
[1770146660070,0.0003,2188.5,2186.9,0.959]
[1770146660071,0.03206376,2188.4,2186.9,0.959]
[1770146660662,0.0003,2188.5,2186.9,13.0853486]
[1770146660865,0.0003,2188.5,2187.0,12.1263486]
[1770146661584,1.26325674,2188.5,2186.6,1.17539442]
[1770146661764,1.26325674,2188.5,2186.7,0.959]
[1770146662002,0.0011,2188.7,2187.6,12.1263486]
[1770146662313,1.51515514,2189.4,2187.6,12.1263486]
[1770146662314,2.7313567,2189.9,2187.8,13.30174302]
[1770146662515,3.20766137,2190.4,2188.3,12.1263486]
[1770146662516,1.58972775,2190.4,2188.3,12.1263486]
[1770146662674,1.14139615,2190.3,2188.4,13.0853486]
[1770146662862,0.03206376,2190.0,2188.5,2.60146872]
[1770146663068,0.03206376,2189.9,2188.1,2.13439442]
[1770146663261,0.03206376,2189.9,2188.1,15.40324713]
[1770146663461,6.64727837,2190.3,2188.3,13.26876288]
[1770146663667,7.60627837,2190.3,2188.3,12.1263486]
[1770146663865,1.54470756,2190.3,2188.5,1.17539442]
[1770146664180,0.61101478,2190.2,2188.6,1.3301743]
[1770146664968,1.17356414,2190.1,2188.2,1.17539442]
[1770146665164,1.17356414,2190.1,2188.1,0.959]
[1770146665165,0.03206376,2190.0,2188.1,0.959]
[1770146665359,0.0011,2188.5,2188.1,0.959]
[1770146665566,0.959,2189.9,2188.1,13.0853486]
[1770146665781,0.959,2189.9,2188.1,14.22788168]
[1770146666080,0.959,2189.9,2188.2,1.42278817]
[1770146666492,0.0011,2189.6,2188.2,1.42278817]
[1770146666708,0.0011,2189.6,2188.2,13.54913677]
[1770146667591,0.0011,2189.6,2188.2,14.69162744]
[1770146667781,0.0011,2189.6,2188.2,15.65062744]
[1770146667980,0.0011,2189.6,2188.2,0.959]
[1770146670221,0.03206376,2189.3,2187.7,12.1263486]
[1770146670418,0.958,2189.3,2187.7,13.26906208]
[1770146670585,0.958,2189.3,2187.7,13.26910121]
[1770146670787,0.0011,2189.6,2187.9,12.1263486]
[1770146670987,0.0011,2189.6,2188.1,12.1263486]
[1770146671515,0.0011,2189.6,2188.1,1.14254304]
[1770146671716,0.0011,2189.6,2188.2,12.1263486]
[1770146672212,0.0011,2189.6,2187.8,1.32691012]
[1770146672213,0.03206376,2189.5,2187.8,1.32691012]
[1770146672383,0.03206376,2189.4,2187.8,0.958]
[1770146673014,1.1419175,2189.3,2187.8,0.958]
[1770146673817,0.03206376,2188.7,2187.2,12.1263486]
[1770146674211,0.03206376,2188.6,2186.9,0.959]
[1770146674406,0.03206376,2188.1,2186.9,0.001]
[1770146675014,0.03206376,2188.1,2186.6,0.001]
[1770146675015,1.14275266,2187.7,2186.6,0.001]
[1770146675519,1.17479805,2187.8,2186.6,0.001]
[1770146675715,1.14273429,2187.8,2186.6,0.001]
[1770146676015,1.14254375,2188.2,2186.6,0.001]
[1770146676202,0.62643958,2188.1,2186.6,0.001]
[1770146676928,0.03206376,2188.0,2186.6,0.001]
[1770146677228,0.03206376,2187.7,2186.6,0.001]
[1770146677430,0.03206376,2187.5,2186.1,0.001]
[1770146677736,0.03206376,2187.0,2185.8,0.001]
[1770146678038,0.03206376,2187.7,2186.8,0.001]
[1770146678241,0.03206376,2187.7,2185.8,13.27106065]
[1770146678242,0.958,2187.5,2185.8,13.27106065]
[1770146678401,0.958,2187.5,2185.8,15.15146556]
[1770146678599,1.69453404,2187.9,2186.5,0.001]
[1770146678841,1.14262873,2188.0,2186.5,0.001]
[1770146679131,2.72799559,2188.1,2186.6,12.1263486]
[1770146679341,2.10155601,2188.1,2186.6,12.1263486]
[1770146679632,1.14255601,2188.1,2186.6,12.1263486]
[1770146679941,1.17461977,2188.1,2186.5,0.96]
[1770146680505,1.14255601,2188.1,2186.5,13.0863486]
[1770146682000,1.17454094,2188.3,2186.5,14.22971162]
[1770146682201,0.03316376,2188.5,2186.5,14.22971162]
[1770146682202,0.57763055,2188.2,2186.6,14.00669158]
[1770146682399,1.14246503,2188.3,2186.6,14.00669158]
[1770146682628,1.14246503,2188.3,2186.7,0.959]
[1770146683329,0.03206376,2188.1,2186.7,0.959]
[1770146684513,0.03206376,2188.1,2186.5,0.001]
[1770146684915,0.03206376,2187.9,2186.5,0.001]
[1770146685116,1.17481642,2187.7,2186.5,0.001]
[1770146685332,0.67368908,2187.6,2186.5,0.001]
[1770146685633,0.03206376,2187.3,2185.8,0.001]
[1770146686408,0.03206376,2187.2,2185.8,0.001]
[1770146686613,0.03206376,2187.1,2185.8,0.001]
[1770146686917,0.99106376,2187.0,2185.8,0.001]
[1770146687217,1.14317069,2186.9,2185.8,0.001]
[1770146687413,0.67069172,2186.8,2185.8,0.001]
[1770146689106,1.14322297,2186.8,2185.8,0.001]
[1770146689940,1.14322297,2186.8,2185.3,0.001]
[1770146689941,0.03206376,2186.4,2185.3,0.001]
[1770146690154,0.959,2186.3,2185.3,0.001]
[1770146690644,0.03206376,2186.2,2185.3,0.001]
[1770146690814,0.03206376,2186.7,2185.3,0.001]
[1770146691130,1.14332754,2186.6,2186.0,0.001]
[1770146691339,1.72452344,2186.7,2186.0,0.001]
[1770146691517,2.10206616,2187.1,2186.0,0.001]
[1770146691741,0.03206376,2186.9,2185.8,0.001]
[1770146691939,0.03206376,2186.7,2185.3,0.001]
[1770146692130,0.03206376,2186.6,2185.3,0.001]
[1770146692334,0.03206376,2186.5,2185.3,0.001]
[1770146692639,0.03206376,2186.4,2185.3,0.001]
[1770146692835,0.959,2186.3,2185.3,0.001]
[1770146693142,1.14353673,2186.2,2185.3,0.001]
[1770146693335,0.66766837,2186.1,2185.3,0.001]
[1770146693730,0.959,2186.0,2185.3,0.001]
[1770146694174,0.03206376,2185.9,2184.9,0.001]
[1770146694644,0.66766837,2186.1,2184.9,0.001]
[1770146694835,0.959,2186.0,2184.9,1.28744142]
[1770146695035,0.99106376,2186.0,2184.9,0.001]
[1770146695235,1.14369367,2185.9,2184.9,0.001]
[1770146695437,1.17575743,2185.9,2184.9,0.001]
[1770146696243,0.03206376,2185.8,2184.9,0.001]
[1770146696465,1.17575743,2185.9,2184.9,0.001]
[1770146696670,0.67415959,2185.8,2184.9,0.001]
[1770146697197,1.14390299,2185.5,2184.3,3.00400947]
[1770146697485,1.14390299,2185.5,2183.8,12.86341415]
[1770146697971,0.959,2185.4,2183.8,12.86341415]
[1770146699182,1.14400768,2185.3,2183.8,12.86341415]
[1770146699350,0.66790384,2185.2,2183.9,1.28644142]
[1770146699541,0.66790384,2185.2,2183.9,12.86341415]
[1770146699741,1.62690384,2185.2,2183.9,12.86341415]
[1770146700475,0.66790384,2185.2,2183.9,12.86341415]
[1770146700642,0.96,2185.7,2183.9,12.86341415]
[1770146700842,1.81794254,2185.8,2183.9,12.86341415]
[1770146701044,0.96,2185.7,2183.9,12.86341415]
[1770146701245,0.96,2185.7,2184.1,12.86341415]
[1770146701470,1.81130304,2186.1,2184.3,12.86341415]
[1770146701677,0.03206376,2185.8,2184.3,12.86341415]
[1770146701986,4.60641991,2186.2,2183.5,0.001]
[1770146701987,0.55188584,2186.5,2184.5,12.86341415]
[1770146702142,1.14317069,2186.9,2184.7,12.86341415]
[1770146702473,0.03206376,2187.3,2184.6,0.2335703]
[1770146702474,1.14275266,2187.8,2185.4,0.2335703]
[1770146702640,0.03206376,2187.5,2185.5,13.82341415]
[1770146702843,0.03206376,2187.5,2185.0,12.86341415]
[1770146702844,0.03206376,2186.5,2185.0,12.86341415]
[1770146703355,2.10343212,2186.4,2185.0,12.86341415]
[1770146703770,2.13549588,2186.4,2184.5,12.86341415]
[1770146704084,0.67412881,2186.3,2185.2,0.001]
[1770146704296,0.70619257,2186.3,2185.2,0.001]
[1770146705089,0.70619257,2186.3,2184.3,4.57811445]
[1770146705092,0.03206376,2185.3,2183.6,12.86341415]
[1770146705289,0.03206376,2184.7,2183.5,0.001]
[1770146705582,0.03206376,2184.5,2183.5,0.001]
[1770146705754,0.96,2184.4,2183.5,0.001]
[1770146705948,1.14421712,2184.9,2183.5,0.001]
[1770146706178,1.53531494,2184.8,2183.5,0.001]
[1770146706982,2.6883586,2184.8,2183.5,0.001]
[1770146707172,0.96,2184.7,2183.5,0.001]
[1770146707372,1.14437425,2184.6,2183.5,0.001]
[1770146707886,0.96,2184.5,2183.5,0.001]
[1770146708261,0.96,2184.4,2183.5,0.001]
[1770146709187,0.03206376,2184.3,2183.5,0.001]
[1770146709362,1.14458382,2184.2,2182.6,0.001]
[1770146709558,0.03206376,2183.5,2182.6,0.001]
[1770146709884,0.99206376,2183.4,2181.4,12.86341415]
[1770146710061,0.03206376,2182.9,2181.4,12.86341415]
[1770146710258,10.11944587,2184.0,2181.6,12.86341415]
[1770146710572,0.96,2183.2,2181.8,12.86341415]
[1770146710767,0.96,2183.2,2181.9,1.28634142]
[1770146711174,0.96,2183.2,2181.3,14.96951465]
[1770146711371,1.14516055,2183.1,2181.3,14.96951465]
[1770146711564,1.14516055,2183.1,2181.3,13.82341415]
[1770146711772,1.17722431,2183.1,2181.3,13.82341415]
[1770146711997,0.96,2183.0,2181.3,14.96951706]
[1770146712200,0.96,2183.0,2181.4,14.8188122]
[1770146712668,1.14516055,2183.1,2181.4,14.8188122]
[1770146713390,1.14516055,2183.1,2181.4,15.96482839]
[1770146713895,1.14495076,2183.5,2181.4,15.96482839]
[1770146714111,0.96,2183.2,2181.4,15.96482839]
[1770146714391,0.96,2183.2,2181.6,12.86341415]
[1770146715488,1.14516055,2183.1,2181.6,12.86341415]
[1770146715886,5.5406422,2183.2,2181.6,14.00935622]
[1770146715887,2.10513946,2183.2,2181.6,14.00935622]
[1770146716068,0.96,2183.1,2181.6,14.00935622]
[1770146716388,0.96,2183.1,2181.6,12.86341415]
[1770146716586,0.96,2183.1,2181.6,14.35977171]
[1770146717071,0.96,2183.1,2181.6,12.86341415]
[1770146717072,0.99206376,2183.1,2181.6,12.86341415]
[1770146717490,1.17727676,2183.0,2181.8,0.001]
[1770146717797,0.03206376,2182.8,2181.8,0.001]
[1770146717985,5.08867081,2182.8,2181.5,0.001]
[1770146718184,0.51207346,2182.7,2181.5,0.001]
[1770146718672,0.961,2182.9,2181.5,0.001]
[1770146719067,0.03206376,2182.8,2181.5,0.001]
[1770146719299,0.03206376,2182.6,2181.5,0.001]
[1770146719610,1.14547537,2182.5,2181.5,0.001]
[1770146720463,0.961,2182.4,2181.5,0.001]
[1770146721490,1.14558035,2182.3,2181.5,0.001]
[1770146721706,0.70095263,2182.2,2180.9,0.001]
[1770146722015,0.66888887,2182.2,2180.9,0.001]
[1770146723411,0.03206376,2181.9,2180.9,0.001]
[1770146723608,0.03206376,2181.7,2180.7,0.001]
[1770146723903,0.961,2181.6,2180.7,0.001]
[1770146725010,0.67864057,2181.7,2180.7,0.001]
[1770146725177,0.60115782,2182.4,2180.8,0.2335703]
[1770146725510,1.14525141,2183.0,2181.3,12.64882978]
[1770146725806,0.961,2182.7,2181.3,12.64882978]
[1770146727076,1.14503401,2183.4,2181.5,12.64882978]
[1770146727282,0.961,2183.9,2181.9,12.64882978]
[1770146727483,0.5572005,2183.8,2182.6,13.79425267]
[1770146727680,1.14468864,2184.0,2182.6,12.64882978]
[1770146727902,1.1767524,2184.0,2182.1,12.64882978]
[1770146728104,0.03206376,2183.8,2182.1,12.64882978]
[1770146728380,0.03206376,2183.4,2182.1,12.64882978]
[1770146728577,0.961,2183.3,2182.0,2.22588298]
[1770146728792,0.961,2183.3,2182.0,0.961]
[1770146729087,0.961,2183.3,2182.0,13.60982978]
[1770146729616,1.14510809,2183.2,2182.0,13.60982978]
[1770146729818,0.03206376,2183.7,2182.0,13.60982978]
[1770146729819,4.57940148,2183.7,2182.0,13.60982978]
[1770146730116,0.961,2184.0,2182.2,12.64882978]
[1770146730283,0.961,2184.0,2182.4,12.64882978]
[1770146730284,0.55716189,2183.9,2182.4,12.64882978]
[1770146730914,0.0011,2183.1,2182.4,12.64882978]
[1770146731415,0.0011,2183.1,2182.0,0.961]
[1770146731916,0.0011,2183.1,2181.5,1.14600004]
[1770146732121,0.0011,2183.1,2181.6,13.79476515]
[1770146732419,0.0011,2183.1,2181.7,1.37947652]
[1770146733120,0.961,2183.0,2181.7,1.37947652]
[1770146733613,1.17732923,2182.9,2181.6,12.64882978]
[1770146734193,1.14526547,2182.9,2181.6,12.64882978]
[1770146736020,1.17732923,2182.9,2181.6,12.64882978]
[1770146736190,0.03206376,2182.8,2181.2,1.17067912]
[1770146736388,0.03206376,2182.6,2181.1,14.7815089]
[1770146736591,0.03206376,2182.2,2181.1,12.64982978]
[1770146736802,0.961,2182.1,2181.1,0.001]
[1770146737214,0.03206376,2181.9,2181.1,0.001]
[1770146737648,1.14584288,2181.8,2181.1,0.001]
[1770146737948,0.57612782,2181.7,2181.1,0.001]
[1770146739123,0.57612782,2181.7,2180.9,0.001]
[1770146739124,0.07164319,2181.7,2180.9,0.001]
[1770146739329,0.03957943,2181.7,2180.9,0.001]
[1770146740037,4.58331152,2181.9,2180.9,0.001]
[1770146740207,0.03206376,2181.8,2180.9,0.001]
[1770146741415,0.03206376,2181.7,2180.9,0.001]
[1770146741614,1.14573785,2182.0,2180.9,0.001]
[1770146741928,0.66895685,2181.9,2180.9,0.001]
[1770146742344,0.66895685,2181.9,2179.6,0.23799637]
[1770146742345,0.03206376,2180.6,2179.6,0.23799637]
[1770146742516,0.961,2180.6,2179.2,1.14718845]
[1770146742717,0.961,2180.6,2179.4,12.64882978]
[1770146743328,0.66245856,2181.4,2179.4,12.64882978]
[1770146743532,0.03440051,2181.2,2179.4,12.64882978]
[1770146743723,1.18061113,2181.1,2179.4,12.64882978]
[1770146743911,0.57998542,2181.0,2179.4,12.64882978]
[1770146744429,0.57998542,2181.0,2179.8,12.64982978]
[1770146744635,1.14617899,2181.2,2179.8,12.64982978]
[1770146744817,1.14617899,2181.2,2180.9,0.001]
[1770146745012,0.03440051,2181.1,2179.8,0.001]
[1770146745238,0.03440051,2181.0,2180.0,0.001]
[1770146745665,1.18076881,2180.8,2180.0,0.001]
[1770146745950,0.03440051,2180.6,2179.8,0.001]
[1770146746809,0.03440051,2180.5,2178.8,13.79622473]
[1770146747144,0.03440051,2180.5,2178.7,5.55187479]
[1770146747145,0.03440051,2180.2,2178.9,12.64882978]
[1770146747320,0.03440051,2180.4,2178.9,12.64882978]
[1770146747727,0.03440051,2179.7,2178.6,0.1356283]
[1770146747936,0.99640051,2179.6,2178.6,0.1356283]
[1770146748161,0.03440051,2180.0,2178.6,0.1356283]
[1770146748162,1.14663119,2180.3,2178.7,1.1474457]
[1770146748349,0.57330389,2180.2,2178.9,12.64882978]
[1770146748653,0.03440051,2180.5,2178.6,0.1356283]
[1770146748654,0.03440051,2179.7,2178.6,0.1356283]
[1770146748965,0.99640051,2179.7,2178.6,0.1356283]
[1770146749358,0.962,2179.7,2178.6,0.1356283]
[1770146749871,0.03440051,2179.5,2178.6,0.1356283]
[1770146750081,0.03440051,2179.2,2178.6,0.1356283]
[1770146750298,0.03440051,2178.9,2177.2,17.24182914]
[1770146750592,0.03440051,2179.3,2177.2,17.24182914]
[1770146750593,0.99640051,2179.6,2177.6,12.8051522]
[1770146750742,0.03440051,2179.4,2177.8,12.8051522]
[1770146750942,0.99640051,2179.6,2177.8,12.8051522]
[1770146751165,0.99640051,2179.6,2177.3,1.8390093]
[1770146751166,0.03440051,2178.8,2177.3,14.6441615]
[1770146751367,0.03440051,2178.5,2177.3,14.6441615]
[1770146751559,0.03440051,2178.5,2176.9,12.8051522]
[1770146751560,0.03440051,2178.3,2176.9,12.8051522]
[1770146752066,0.03440051,2178.2,2176.9,12.8051522]
[1770146752445,0.03440051,2178.2,2176.8,0.962]
[1770146752651,0.03440051,2177.8,2176.4,12.8051522]
[1770146752871,0.03440051,2177.2,2175.9,12.8051522]
[1770146753179,0.03440051,2177.2,2174.2,1.56443031]
[1770146753180,0.03440051,2175.2,2174.2,1.56443031]
[1770146753469,0.03440051,2175.2,2173.1,13.0]
[1770146753470,3.14695497,2175.4,2174.4,12.98279974]
[1770146753680,0.27269374,2175.9,2174.1,0.962]
[1770146753681,0.23829323,2175.9,2174.3,1.14977724]
[1770146753861,0.23829323,2175.9,2174.4,1.14974101]
[1770146754055,0.23829323,2175.9,2174.4,2.11172282]
[1770146754440,0.23829323,2175.9,2174.4,15.09452256]
[1770146754639,0.23829323,2175.9,2174.6,12.98279974]
[1770146754841,0.23829323,2175.9,2174.2,4.59896983]
[1770146754842,21.93000266,2175.8,2172.3,2.50182223]
[1770146755042,21.93000266,2175.8,2171.8,5.41199303]
[1770146755043,0.24012268,2171.9,2170.7,13.0]
[1770146755302,0.24012268,2171.9,2169.9,0.1356283]
[1770146755303,0.22847333,2172.7,2171.0,12.31508644]
[1770146755443,10.11285653,2174.8,2171.0,12.31508644]
[1770146755444,0.473,2174.2,2171.2,12.60089823]
[1770146755773,1.20259092,2175.7,2171.1,0.962]
[1770146755774,6.31466119,2175.1,2172.6,10.11285653]
[1770146755954,0.67416595,2175.4,2172.7,3.23957736]
[1770146756272,0.1024,2174.5,2171.9,12.66291702]
[1770146756573,10.78702248,2175.2,2171.9,12.66291702]
[1770146756574,2.47819285,2174.6,2171.9,12.66291702]
[1770146756796,0.67416595,2174.3,2171.3,12.66291702]
[1770146757068,0.1024,2173.6,2171.4,0.001]
[1770146757287,0.963,2173.5,2171.4,0.001]
[1770146757588,0.1024,2173.9,2171.5,12.66291702]
[1770146757734,0.1024,2173.7,2171.5,13.81418429]
[1770146757942,0.1024,2173.7,2171.5,13.81419216]
[1770146758145,0.1024,2173.7,2171.5,12.66291702]
[1770146758463,10.11285653,2173.3,2170.5,12.66341702]
[1770146758640,1.32628789,2173.6,2170.6,11.07585653]
[1770146758846,1.8024,2173.5,2171.4,1.1513207]
[1770146759167,1.8024,2173.5,2171.5,0.963]
[1770146759168,0.1024,2173.5,2171.5,0.963]
[1770146759370,0.1024,2173.5,2171.1,0.1024]
[1770146759746,1.15027146,2173.4,2171.1,0.1024]
[1770146759947,0.68777573,2173.3,2171.2,0.963]
[1770146760152,0.58537573,2173.3,2171.2,0.963]
[1770146760349,4.0886765,2173.8,2171.7,12.66341702]
[1770146760573,4.0886765,2173.8,2171.6,0.3359703]
[1770146760574,4.0886765,2173.8,2172.2,0.2335703]
[1770146760785,4.0886765,2173.8,2172.3,0.2335703]
[1770146761195,4.0886765,2173.8,2172.2,12.66341702]
[1770146761642,5.23875877,2173.8,2171.7,12.89698732]
[1770146761985,0.1024,2173.6,2171.8,1.29993873]
[1770146762194,0.1024,2173.6,2171.6,0.964]
[1770146762483,0.1024,2173.6,2171.7,0.2335703]
[1770146762680,0.1024,2173.6,2171.6,0.964]
[1770146763190,0.1024,2173.6,2171.3,12.61729993]
[1770146763493,0.1012,2173.6,2171.5,0.2335703]
[1770146763793,1.15021854,2173.5,2171.5,1.38148702]
[1770146763966,1.15021854,2173.5,2171.5,2.34548702]
[1770146764354,5.1253473,2173.6,2171.5,2.34548702]
[1770146764355,1.67466253,2173.6,2171.5,2.34548702]
[1770146764589,1.67466253,2173.6,2171.8,12.87392878]
[1770146764590,0.52447314,2173.6,2171.8,12.87392878]
[1770146764885,0.36254983,2174.3,2172.4,12.97632878]
[1770146765075,0.64905929,2174.2,2172.4,12.87392878]
[1770146765403,0.64905929,2174.2,2171.9,2.30891853]
[1770146765404,0.36006678,2174.1,2172.0,4.835]
[1770146765685,0.1024,2174.0,2172.2,0.2335703]
[1770146765863,0.46246678,2174.0,2172.2,0.2335703]
[1770146766186,0.36006678,2174.0,2172.2,12.53799113]
[1770146766888,0.36006678,2174.0,2172.3,0.964]
[1770146767290,0.1024,2173.9,2172.2,12.06956732]
[1770146767489,0.33494653,2173.9,2172.3,0.964]
[1770146767692,0.33494653,2173.9,2172.5,0.2335703]
[1770146768080,0.33494653,2173.9,2172.5,1.38430319]
[1770146768392,0.33494653,2173.9,2172.5,13.45387051]
[1770146768783,1.37828441,2176.7,2172.6,0.1024]
[1770146768982,0.40961163,2175.0,2172.7,13.26713762]
[1770146769292,0.40961163,2175.0,2172.8,1.32671376]
[1770146769293,13.3138354,2174.9,2172.8,1.32671376]
[1770146769494,13.3138354,2174.9,2172.9,0.2335703]
[1770146769495,0.39945107,2174.8,2172.9,0.2335703]
[1770146769685,0.1024,2174.7,2172.9,0.2335703]
[1770146769882,0.32713155,2174.6,2172.9,0.2335703]
[1770146770195,0.32713155,2174.6,2173.2,12.06956732]
[1770146770393,0.32713155,2174.6,2173.3,1.1985703]
[1770146770797,0.32713155,2174.6,2172.9,1.91964143]
[1770146770995,0.0011,2173.8,2173.2,0.965]
[1770146771168,0.32713155,2174.6,2173.2,0.965]
[1770146771501,0.32513155,2174.6,2173.2,0.965]
[1770146771694,0.32513155,2174.6,2173.3,0.2335703]
[1770146771895,0.32513155,2174.6,2173.3,12.30313762]
[1770146772064,0.32513155,2174.6,2173.5,0.2335703]
[1770146772269,0.32513155,2174.6,2173.4,1.44185072]
[1770146772470,0.32513155,2174.6,2172.7,22.28482385]
[1770146772471,0.32513155,2174.6,2173.5,0.965]
[1770146772678,0.32513155,2174.6,2173.2,0.965]
[1770146772886,1.4747731,2174.6,2173.2,0.965]
[1770146773096,1.4747731,2174.6,2172.7,12.06956732]
[1770146773402,0.1024,2174.5,2172.4,1.15075982]
[1770146773611,0.816472,2174.5,2172.5,0.57661259]
[1770146773899,0.714072,2174.5,2172.5,13.2213153]
[1770146774081,1.29013155,2174.6,2172.8,0.2335703]
[1770146774282,1.29013155,2174.6,2172.8,12.30313762]
[1770146774821,0.32513155,2174.6,2172.8,12.30313762]
[1770146775318,0.32513155,2174.6,2173.0,0.2335703]
[1770146775516,0.32513155,2174.6,2173.0,12.30313762]
[1770146775672,0.32513155,2174.6,2173.2,0.2335703]
[1770146775871,0.32513155,2174.6,2173.1,13.39638108]
[1770146776212,1.47477302,2174.6,2172.9,0.965]
[1770146776573,0.32513155,2174.6,2172.9,0.965]
[1770146776774,1.47479062,2174.6,2172.9,0.965]
[1770146776993,0.1024,2174.5,2172.6,12.06956732]
[1770146777201,0.1024,2174.3,2172.5,0.966]
[1770146777775,1.14984822,2174.2,2172.5,0.966]
[1770146778517,1.14984822,2174.2,2172.5,0.001]
[1770146779328,0.1024,2174.1,2172.5,0.001]
[1770146779807,0.1024,2174.2,2172.5,0.001]
[1770146780010,1.13925858,2174.2,2172.5,0.001]
[1770146780227,0.965,2174.4,2172.5,12.07056732]
[1770146780515,6.21777939,2175.0,2172.5,12.07056732]
[1770146780516,0.31963552,2175.9,2173.9,12.95933393]
[1770146780683,0.31963552,2175.9,2174.0,14.15790423]
[1770146780885,0.31963552,2175.9,2174.4,13.19290423]
[1770146781193,0.31963552,2175.9,2173.9,12.95933393]
[1770146781194,0.1024,2175.8,2173.9,12.95933393]
[1770146781371,0.1024,2175.8,2173.8,0.2335703]
[1770146781576,0.1024,2175.8,2174.0,0.2335703]
[1770146781902,1.28463552,2175.9,2174.0,1.14992702]
[1770146782208,1.28463552,2175.9,2174.1,0.2335703]
[1770146782209,0.9820196,2175.8,2174.1,0.2335703]
[1770146782417,0.34156548,2175.7,2174.1,0.46842003]
[1770146782578,1.28463552,2175.9,2174.1,0.46842003]
[1770146782777,1.46861214,2175.9,2174.1,0.46842003]
[1770146783086,1.46861214,2175.9,2174.2,0.965]
[1770146783394,0.98311604,2175.8,2174.2,0.965]
[1770146783576,1.46859626,2175.9,2174.2,0.965]
[1770146783774,0.98310837,2175.8,2174.2,0.965]
[1770146784006,0.31963552,2175.9,2174.3,0.2335703]
[1770146784212,0.31963552,2175.9,2174.3,13.88768512]
[1770146785299,0.31963552,2175.9,2174.7,13.19290423]
[1770146785479,2.11354881,2176.7,2174.7,13.19290423]
[1770146785690,0.98242995,2176.6,2174.8,0.965]
[1770146785891,2.13109313,2176.5,2174.7,14.34245372]
[1770146786220,2.13109313,2176.5,2174.4,0.2335703]
[1770146786221,1.19213704,2176.3,2174.4,0.2335703]
[1770146786521,0.0011,2175.7,2174.6,0.2335703]
[1770146786850,0.0011,2175.7,2174.6,4.83196567]
[1770146786996,0.0011,2175.7,2174.5,0.2335703]
[1770146787488,0.0011,2175.7,2174.3,1.84453599]
[1770146787707,0.0011,2175.7,2174.4,0.2810536]
[1770146789095,0.0011,2175.7,2174.2,0.001]
[1770146789297,0.0011,2175.7,2174.3,1.14975993]
[1770146789601,0.0011,2175.7,2174.2,0.001]
[1770146789793,0.0011,2175.7,2174.2,0.2345703]
[1770146789993,0.0011,2175.7,2174.2,0.001]
[1770146790227,0.98239376,2175.6,2174.2,1.1508417]
[1770146790395,0.0011,2175.7,2174.2,1.1508417]
[1770146790598,0.0011,2175.7,2174.2,0.001]
[1770146792113,0.0011,2175.7,2174.1,13.18833768]
[1770146792313,0.0011,2175.7,2174.2,1.77880674]
[1770146792625,0.0011,2175.7,2174.3,0.964]
[1770146794008,0.0011,2175.7,2174.3,2.11375904]
[1770146794339,0.0011,2175.7,2174.4,13.19290423]
[1770146794907,0.0011,2175.7,2174.5,0.964]
[1770146795230,0.0011,2175.7,2174.6,1.41569042]
[1770146795728,0.0011,2175.7,2174.4,12.95933393]
[1770146795938,0.0011,2175.7,2174.4,13.92333393]
[1770146796124,0.0011,2175.7,2174.5,0.3359703]
[1770146796329,0.0011,2175.7,2174.5,13.29530423]
[1770146796827,0.0011,2175.7,2174.6,0.964]
[1770146797034,0.0011,2175.7,2174.8,0.2335703]
[1770146797203,0.0011,2175.7,2174.7,1.42593042]
[1770146797535,0.0011,2175.7,2174.5,12.95933393]
[1770146797841,0.0011,2175.7,2174.9,0.2335703]
[1770146798005,3.30456805,2176.9,2175.1,0.2335703]
[1770146798213,0.98375138,2176.8,2175.1,0.2335703]
[1770146798434,0.98375138,2176.7,2175.1,1.1975703]
[1770146798619,2.11243101,2176.9,2175.2,0.23469956]
[1770146798923,0.98366268,2176.8,2175.2,0.23469956]
[1770146799241,3.30456805,2176.9,2175.2,0.23469956]
[1770146799242,0.98366268,2176.7,2175.2,0.23469956]
[1770146799439,4.44554594,2176.8,2175.2,0.23469956]
[1770146799636,0.98355825,2176.7,2175.0,0.2335703]
[1770146799934,0.98355825,2176.6,2175.0,0.2335703]
[1770146800148,4.44554594,2176.8,2175.1,1.14937244]
[1770146800441,6.31582655,2177.1,2175.1,1.14937244]
[1770146800442,2.65916649,2177.2,2175.2,13.19290423]
[1770146800607,1.46703272,2177.2,2175.2,13.19290423]
[1770146800804,0.0011,2175.9,2175.4,0.2335703]
[1770146801006,0.59136787,2177.1,2175.4,0.2335703]
[1770146801438,0.0011,2176.8,2175.4,13.19290423]
[1770146801647,0.0011,2176.8,2175.6,0.2335703]
[1770146802346,0.0011,2176.8,2175.8,0.2335703]
[1770146802531,0.0011,2176.8,2175.8,0.83145507]
[1770146802712,0.0011,2176.8,2175.8,13.790789]
[1770146803042,0.0011,2176.8,2175.9,0.964]
[1770146803413,0.0011,2176.8,2176.0,0.2335703]
[1770146803618,0.31876498,2177.2,2176.0,0.2335703]
[1770146803946,0.0011,2178.4,2176.4,12.95933393]
[1770146804145,0.0011,2178.4,2177.1,0.2335703]
[1770146804318,0.0011,2178.4,2177.2,0.964]
[1770146804518,0.0011,2178.4,2177.1,0.2335703]
[1770146804519,0.0011,2178.4,2177.1,13.19290423]
[1770146804863,5.95974796,2179.3,2177.1,13.19290423]
[1770146804864,0.0011,2179.5,2178.2,0.2335703]
[1770146805015,0.0011,2179.5,2178.3,0.964]
[1770146805236,1.14818975,2179.5,2177.5,12.95933393]
[1770146805508,0.57363981,2179.4,2177.9,0.2335703]
[1770146805815,1.14815796,2179.5,2177.9,0.2335703]
[1770146806230,0.0011,2179.5,2177.9,1.38146467]
[1770146806744,5.10335904,2179.5,2177.6,1.29593339]
[1770146806946,5.10335904,2179.5,2177.9,0.2335703]
[1770146807254,0.62503661,2179.4,2178.0,0.2335703]
[1770146807408,0.0011,2179.5,2178.0,0.2335703]
[1770146808237,0.0011,2179.5,2178.2,0.2335703]
[1770146808845,0.0011,2179.5,2178.2,13.19290423]
[1770146809217,0.0011,2179.5,2177.9,1.48383445]
[1770146809616,0.0011,2179.5,2178.0,0.964]
[1770146809914,0.0011,2179.5,2178.1,0.2335703]